bitfinex-derivatives/quotes_ETHF0:USTF0_20250627
["timestamp","ask_amount","ask_price","bid_price","bid_amount"]
[1751039445665,2.0792,2437.5,2437.4,35.97298]
[1751039445865,2.0792,2437.5,2437.4,76.77298]
[1751039446265,2.0792,2437.5,2437.4,35.97298]
[1751039446676,5.85032464,2437.5,2437.4,35.97298]
[1751039447968,5.85032464,2437.5,2437.4,10.66298]
[1751039448161,6.67046464,2437.5,2437.4,35.96998]
[1751039449174,5.85032464,2437.5,2437.4,35.96998]
[1751039449572,6.67046464,2437.5,2437.4,35.96998]
[1751039449772,5.85032464,2437.5,2437.4,35.96998]
[1751039450175,6.67046464,2437.5,2437.4,35.96998]
[1751039450569,5.85032464,2437.5,2437.4,35.96998]
[1751039451774,6.67046464,2437.5,2437.4,35.96998]
[1751039451975,3.77112464,2437.2,2437.1,3.2078]
[1751039452275,3.77112464,2437.2,2437.1,35.96608]
[1751039452573,5.89692464,2437.2,2437.1,35.96608]
[1751039452768,2.6592,2437.5,2437.1,38.91692464]
[1751039452969,2.6592,2437.5,2437.4,0.82018]
[1751039452970,0.6597,2437.5,2437.4,0.82018]
[1751039453171,0.6597,2437.5,2437.4,26.12218]
[1751039454775,0.82003,2437.9,2437.7,0.82005]
[1751039455074,0.82003,2437.9,2437.7,26.12205]
[1751039455276,2.83613,2437.9,2437.7,26.12205]
[1751039456579,2.83613,2437.9,2437.8,0.82004]
[1751039457273,2.0161,2437.9,2437.8,4.02784]
[1751039457577,4.0156,2437.9,2437.8,4.02784]
[1751039458777,2.6594,2437.9,2437.8,4.02784]
[1751039458969,4.0043,2437.9,2437.8,0.82004]
[1751039459367,4.0043,2437.9,2437.7,26.12205]
[1751039459576,4.0043,2437.9,2437.7,25.302]
[1751039459577,0.82004,2437.8,2437.7,25.302]
[1751039459778,2.16494,2437.8,2437.7,25.296]
[1751039460580,1.3449,2437.8,2437.7,26.11608]
[1751039461380,2.6594,2437.9,2437.8,0.82004]
[1751039461685,3.47941,2437.9,2437.8,0.82004]
[1751039461876,2.6594,2437.9,2437.8,0.82004]
[1751039462272,1.9995,2437.9,2437.8,4.59116464]
[1751039462581,0.679,2438.1,2438.0,0.81997]
[1751039462774,1.9995,2438.1,2438.0,26.11397]
[1751039462973,0.679,2438.3,2438.2,0.81991]
[1751039463173,0.4426,2438.3,2438.2,6.97892464]
[1751039463377,0.4426,2438.3,2438.2,4.02771]
[1751039463673,0.679,2439.0,2438.9,0.81967]
[1751039463879,3.22281308,2439.0,2438.9,32.73167]
[1751039464081,3.22281308,2439.0,2438.9,31.912]
[1751039464773,7.22904103,2438.9,2438.7,40.8]
[1751039464976,0.81971,2438.8,2438.7,40.8]
[1751039465181,1.4009,2438.8,2438.7,32.73074]
[1751039465978,2.22061,2438.8,2438.7,31.911]
[1751039466182,1.4009,2438.8,2438.7,31.911]
[1751039466783,1.4009,2438.8,2438.7,32.73074]
[1751039466979,2.2359,2439.0,2438.8,0.81969]
[1751039467184,4.39805,2439.0,2438.9,25.286]
[1751039470381,7.22904103,2438.8,2438.7,6.618]
[1751039470583,8.04875103,2438.8,2438.7,31.899]
[1751039470782,2.2466,2438.9,2438.7,31.899]
[1751039470981,0.8197,2438.9,2438.8,0.81971]
[1751039471284,3.05555,2439.0,2438.8,0.81968]
[1751039471478,0.81967,2438.9,2438.8,0.81968]
[1751039472183,3.05556,2439.0,2438.9,0.81967]
[1751039472488,2.2359,2439.0,2438.9,26.09767]
[1751039472680,3.05554,2439.0,2438.9,25.278]
[1751039472879,8.04871103,2438.9,2438.8,25.277]
[1751039473180,8.04871103,2438.9,2438.5,44.0078]
[1751039473181,7.22904103,2438.6,2438.5,6.617]
[1751039473484,8.04881103,2438.6,2438.5,31.894]
[1751039473683,0.81977,2438.6,2438.5,31.894]
[1751039474085,1.48737,2438.6,2438.5,31.894]
[1751039474286,0.6676,2438.6,2438.5,32.71381]
[1751039476289,8.71641103,2438.6,2438.5,6.617]
[1751039476582,8.71641103,2438.6,2438.5,31.893]
[1751039476782,0.6676,2438.6,2438.5,32.71281]
[1751039477478,0.6767,2438.8,2438.7,0.81971]
[1751039477678,1.49641,2438.8,2438.7,25.275]
[1751039478179,2.87861,2438.8,2438.7,25.275]
[1751039478380,6.08641,2438.8,2438.7,25.275]
[1751039478585,6.08641,2438.8,2438.5,6.617]
[1751039478586,8.04881103,2438.6,2438.5,6.617]
[1751039478791,8.04881103,2438.6,2438.5,31.891]
[1751039479281,8.75951103,2438.6,2438.5,32.71081]
[1751039479482,0.7107,2438.6,2438.5,32.71081]
[1751039479981,0.7107,2438.6,2438.5,31.891]
[1751039479982,1.53047,2438.6,2438.5,31.891]
[1751039480186,2.93587,2438.6,2438.5,32.71081]
[1751039480381,2.1161,2438.6,2438.5,32.71081]
[1751039480583,0.7107,2438.6,2438.5,32.71081]
[1751039481280,1.53047,2438.6,2438.5,32.71081]
[1751039481485,1.53047,2438.6,2438.5,31.891]
[1751039481880,1.53047,2438.6,2438.5,32.71081]
[1751039482693,1.53047,2438.6,2438.5,31.891]
[1751039483192,1.53047,2438.6,2438.5,32.71081]
[1751039483893,1.53047,2438.6,2438.5,31.891]
[1751039484193,1.53047,2438.6,2438.5,32.71081]
[1751039484993,1.53047,2438.6,2438.5,31.891]
[1751039485794,0.7107,2438.6,2438.3,0.81986]
[1751039485989,0.81984,2438.4,2438.3,0.81986]
[1751039486193,0.81987,2438.3,2438.2,3.2078]
[1751039486395,0.6784,2438.3,2438.2,35.91371]
[1751039486593,0.7107,2438.6,2438.4,0.81981]
[1751039486594,2.81671,2438.5,2438.4,0.81981]
[1751039486794,3.49511,2438.5,2438.4,26.08881]
[1751039487196,2.6753,2438.5,2438.4,26.08881]
[1751039487694,3.49511,2438.5,2438.4,26.08881]
[1751039488090,1.49821,2438.5,2438.4,26.08881]
[1751039488486,3.49511,2438.5,2438.4,26.08881]
[1751039489298,3.49511,2438.5,2438.4,25.269]
[1751039489597,3.49511,2438.5,2438.4,26.08884]
[1751039490098,3.49511,2438.5,2438.4,25.269]
[1751039490394,3.49511,2438.5,2438.4,26.08884]
[1751039491495,2.6753,2438.5,2438.4,26.08884]
[1751039492100,3.49511,2438.5,2438.4,26.08884]
[1751039494100,3.49511,2438.5,2438.2,11.2348]
[1751039494101,0.81987,2438.3,2438.2,3.2078]
[1751039494302,4.58783773,2438.2,2438.1,53.856]
[1751039494494,4.58783773,2438.2,2438.1,31.869]
[1751039494999,4.58783773,2438.2,2438.1,6.605]
[1751039495203,4.58783773,2438.2,2438.1,31.869]
[1751039496900,4.58783773,2438.2,2438.1,32.68894]
[1751039497195,3.76792773,2438.2,2438.1,32.68894]
[1751039497398,0.81991,2438.2,2438.1,32.68892]
[1751039497596,4.58783773,2438.2,2438.1,31.869]
[1751039498396,0.81991,2438.2,2438.1,31.867]
[1751039498592,4.58783773,2438.2,2438.1,31.867]
[1751039498807,3.76792773,2437.8,2437.7,3.24153904]
[1751039499102,4.58796773,2437.8,2437.7,35.93060904]
[1751039499306,4.58796773,2437.8,2437.7,32.68907]
[1751039499493,4.58796773,2437.8,2437.7,31.869]
[1751039499696,4.58796773,2437.8,2437.7,32.68908]
[1751039499893,3.76792773,2437.8,2437.7,32.68908]
[1751039500200,0.82004,2437.9,2437.8,0.82004]
[1751039500504,0.82003,2437.9,2437.8,0.82003]
[1751039500904,0.82006,2437.8,2437.7,0.82006]
[1751039501106,0.82002,2437.9,2437.8,0.82002]
[1751039501405,2.272,2438.0,2437.9,0.82001]
[1751039501703,2.272,2438.0,2437.9,26.08101]
[1751039502005,2.272,2438.0,2437.9,25.261]
[1751039502500,0.82004,2437.8,2437.7,7.42607]
[1751039502704,0.82004,2437.8,2437.7,32.68707]
[1751039503298,4.20933,2437.9,2437.8,0.82004]
[1751039503606,0.82004,2437.8,2437.7,31.867]
[1751039503896,4.20933,2437.9,2437.8,0.82004]
[1751039504201,2.81693,2437.9,2437.8,0.82004]
[1751039504602,0.82004,2437.8,2437.7,32.68705]
[1751039505002,0.82004,2437.8,2437.7,31.867]
[1751039505906,8.05571889,2437.8,2437.7,6.606]
[1751039506106,8.05571889,2437.8,2437.7,31.866]
[1751039506310,9.42161889,2437.8,2437.7,31.866]
[1751039506505,9.42161889,2437.8,2437.7,6.606]
[1751039506709,9.42161889,2437.8,2437.7,31.866]
[1751039506896,7.23567889,2437.4,2437.2,0.6974]
[1751039507100,0.82028,2437.1,2437.0,3.2078]
[1751039507309,8.05597889,2437.1,2437.0,25.259]
[1751039507506,0.82031,2437.0,2436.9,6.607]
[1751039507705,0.82031,2437.0,2436.9,31.866]
[1751039508111,0.82031,2437.0,2436.0,42.85155]
[1751039508112,7.23567889,2436.8,2436.4,3.2078]
[1751039508409,0.82045,2436.6,2436.5,26.08047]
[1751039508797,0.82045,2436.6,2436.4,10.6353]
[1751039508998,0.82048,2436.5,2436.4,9.8148]
[1751039509205,0.82048,2436.5,2436.4,35.0738]
[1751039509612,0.82048,2436.5,2436.4,35.89431]
[1751039509814,1.4568,2436.7,2436.5,0.82048]
[1751039510016,7.23567889,2436.8,2436.6,26.07943]
[1751039510204,7.23567889,2436.8,2436.6,25.259]
[1751039510408,7.23567889,2436.8,2436.7,0.82041]
[1751039510701,8.05607889,2436.8,2436.6,26.07943]
[1751039511106,7.23567889,2436.8,2436.6,26.07943]
[1751039511608,7.23567889,2436.8,2436.7,0.82041]
[1751039511609,8.05607889,2436.8,2436.7,0.82041]
[1751039511811,7.23567889,2436.8,2436.7,0.82041]
[1751039513403,8.05605889,2436.8,2436.7,0.82041]
[1751039513809,7.23567889,2436.8,2436.7,0.82041]
[1751039514221,8.05606889,2436.8,2436.6,26.07943]
[1751039514417,8.05606889,2436.8,2436.6,25.259]
[1751039514608,8.05606889,2436.8,2436.7,0.82041]
[1751039514810,7.23567889,2436.8,2436.7,0.82041]
[1751039516910,8.05605889,2436.8,2436.7,0.82041]
[1751039517213,7.23567889,2436.8,2436.7,0.82041]
[1751039517517,7.23567889,2436.8,2436.6,26.07942]
[1751039517811,0.82048,2436.5,2436.4,3.2078]
[1751039518011,8.05615889,2436.5,2436.4,35.0798]
[1751039518615,8.05615889,2436.5,2436.4,35.90031]
[1751039518819,0.82046,2436.6,2436.5,0.82048]
[1751039519119,2.81736,2436.6,2436.5,0.82048]
[1751039519506,1.9969,2436.6,2436.5,0.82048]
[1751039519713,2.81735,2436.6,2436.5,0.82048]
[1751039519912,0.82048,2436.5,2436.4,2.17249]
[1751039520211,2.81736,2436.6,2436.5,0.82048]
[1751039520411,1.9969,2436.6,2436.5,26.08448]
[1751039521314,1.9969,2436.6,2436.5,26.38378]
[1751039521516,1.9969,2436.6,2436.5,27.77278]
[1751039521817,1.9969,2436.6,2436.5,32.77278]
[1751039522011,0.7125,2437.2,2437.1,0.82028]
[1751039522218,4.02803,2437.3,2437.2,0.82024]
[1751039522419,4.02803,2437.3,2437.1,0.82026]
[1751039522420,0.82024,2437.2,2437.1,0.82026]
[1751039522618,3.2078,2437.3,2437.2,0.82024]
[1751039522818,6.02491,2437.3,2437.1,0.82025]
[1751039523121,0.82028,2437.1,2436.7,3.2078]
[1751039523419,0.82028,2437.1,2437.0,6.598]
[1751039523721,2.81717,2437.2,2437.0,7.41831]
[1751039523922,2.81717,2437.2,2437.0,6.598]
[1751039524225,0.82028,2437.1,2437.0,6.598]
[1751039524421,1.9969,2437.2,2437.0,6.598]
[1751039524614,0.82028,2437.1,2437.0,6.598]
[1751039524920,0.82028,2437.1,2437.0,7.41831]
[1751039525122,2.81717,2437.2,2437.1,0.82028]
[1751039525619,0.82028,2437.1,2437.0,7.41829]
[1751039526722,5.76761262,2437.2,2437.1,0.82028]
[1751039526723,6.58787262,2437.2,2437.1,0.82028]
[1751039526922,0.82028,2437.1,2437.0,7.41829]
[1751039527222,6.58787262,2437.2,2437.1,0.82028]
[1751039527415,1.9969,2437.2,2437.1,0.82028]
[1751039528115,1.9969,2437.2,2437.1,27.51478]
[1751039528315,4.02801,2437.3,2437.2,0.82024]
[1751039528716,3.2078,2437.3,2437.2,2.25574]
[1751039529019,1.9969,2437.3,2437.2,7.25574]
[1751039529231,4.02791,2437.6,2437.5,0.82014]
[1751039529619,6.97851262,2437.6,2437.5,0.82014]
[1751039529923,9.79552262,2437.6,2437.5,0.82014]
[1751039530124,8.97541262,2437.6,2437.5,0.82014]
[1751039530324,5.2047,2437.6,2437.5,0.82014]
[1751039530823,5.2047,2437.6,2437.4,32.67616]
[1751039531123,0.82014,2437.5,2437.4,32.67616]
[1751039532325,2.81702,2437.6,2437.5,0.82014]
[1751039532518,1.9969,2437.6,2437.5,0.82014]
[1751039534222,1.9969,2437.6,2437.4,32.97515]
[1751039534420,0.82014,2437.5,2437.4,32.67615]
[1751039534619,1.9969,2437.6,2437.5,0.82014]
[1751039536026,1.9969,2437.6,2437.5,2.24104]
[1751039536626,1.9969,2437.6,2437.5,0.82014]
[1751039537028,1.9969,2437.6,2437.5,2.24104]
[1751039537828,1.9969,2437.6,2437.5,0.82014]
[1751039539024,1.9969,2437.6,2437.3,3.2078]
[1751039539230,0.82016,2437.5,2437.4,32.66616]
[1751039539731,1.9969,2437.6,2437.5,0.82014]
[1751039539932,1.9969,2437.6,2437.5,32.66414]
[1751039540229,2.81701,2437.6,2437.5,31.844]
[1751039540428,1.9969,2437.6,2437.5,31.844]
[1751039540629,1.9969,2437.6,2437.5,32.66414]
[1751039540830,1.9969,2437.6,2437.5,0.82014]
[1751039541132,2.81701,2437.6,2437.5,32.66314]
[1751039542225,1.9969,2437.6,2437.5,32.66314]
[1751039542927,0.681,2437.7,2437.6,0.82011]
[1751039545433,1.50107,2437.7,2437.6,0.82011]
[1751039545727,1.50107,2437.7,2437.6,32.66011]
[1751039546032,2.6779,2437.7,2437.6,32.66011]
[1751039548631,0.681,2437.7,2437.6,32.66011]
[1751039548932,0.681,2437.7,2437.6,32.98020156]
[1751039549632,0.681,2437.7,2437.6,36.18800156]
[1751039550327,0.681,2437.7,2437.6,35.86791]
[1751039550923,0.681,2437.7,2437.4,7.41618]
[1751039550924,0.82015,2437.5,2437.4,7.41618]
[1751039551129,8.05733388,2437.6,2437.4,32.65316]
[1751039551433,0.82014,2437.5,2437.4,32.65316]
[1751039551634,9.37702388,2437.6,2437.5,0.82014]
[1751039551823,2.6779,2437.7,2437.5,0.82014]
[1751039552028,3.49797,2437.7,2437.6,25.237]
[1751039552228,2.6779,2437.7,2437.6,26.05711]
[1751039552529,0.681,2437.7,2437.6,26.05711]
[1751039552837,0.7487,2437.7,2437.6,26.05711]
[1751039554939,0.7487,2437.7,2437.6,66.85711]
[1751039555942,0.0677,2437.7,2437.6,78.83328035]
[1751039556144,0.6822,2438.1,2438.0,0.81997]
[1751039556440,3.67132166,2438.1,2438.0,32.63797]
[1751039556830,3.67132166,2438.1,2438.0,73.43797]
[1751039558341,1.67442166,2438.1,2438.0,73.43797]
[1751039559447,2.49436166,2438.1,2438.0,40.8]
[1751039559652,6.26273201,2438.1,2438.0,72.614]
[1751039559855,7.43969201,2438.1,2438.0,73.43397]
[1751039560052,3.67132166,2438.1,2438.0,73.43397]
[1751039560853,4.49126166,2438.1,2438.0,73.43397]
[1751039561042,3.49904,2438.1,2438.0,72.614]
[1751039561246,3.49904,2438.1,2438.0,73.43397]
[1751039561455,7.26741035,2438.1,2438.0,72.613]
[1751039561655,7.26741035,2438.1,2438.0,40.8]
[1751039561848,7.26741035,2438.1,2438.0,72.61]
[1751039562151,7.26741035,2438.1,2438.0,40.8]
[1751039562352,7.26741035,2438.1,2438.0,72.609]
[1751039562958,7.26741035,2438.1,2438.0,40.8]
[1751039563156,7.26741035,2438.1,2438.0,72.609]
[1751039563555,7.26741035,2438.1,2438.0,73.42897]
[1751039563759,2.6791,2438.1,2438.0,73.42897]
[1751039564051,3.49904,2438.1,2438.0,73.42897]
[1751039564258,2.6791,2438.1,2438.0,73.42897]
[1751039564856,3.49904,2438.1,2438.0,73.42897]
[1751039565059,2.6791,2438.1,2438.0,73.42897]
[1751039565260,3.49904,2438.1,2438.0,73.42897]
[1751039565656,2.6791,2438.1,2438.0,73.42897]
[1751039567762,3.49904,2438.1,2438.0,73.42897]
[1751039568364,3.49904,2438.1,2438.0,72.609]
[1751039568557,3.49904,2438.1,2438.0,47.384]
[1751039568757,3.76837035,2437.7,2437.5,0.82011]
[1751039568961,0.7158,2437.6,2437.5,0.82011]
[1751039569163,0.7158,2437.6,2437.5,73.42111]
[1751039570059,0.7158,2437.6,2437.5,48.20311]
[1751039570364,0.7158,2437.6,2437.5,47.383]
[1751039570365,1.53591,2437.6,2437.5,47.383]
[1751039570556,1.53591,2437.6,2437.5,6.583]
[1751039570557,2.88881,2437.6,2437.5,6.583]
[1751039570860,4.88571,2437.6,2437.5,31.8]
[1751039571261,4.88571,2437.6,2437.5,6.583]
[1751039571456,0.82018,2437.4,2437.3,40.8]
[1751039571652,0.82028,2437.1,2437.0,4.0281]
[1751039571958,0.82028,2437.1,2437.0,35.82811]
[1751039572159,0.6855,2437.1,2437.0,76.62811]
[1751039573569,0.6855,2437.1,2437.0,76.62711]
[1751039574271,0.6855,2437.1,2437.0,76.62811]
[1751039577062,1.50578,2437.1,2437.0,50.5908]
[1751039577269,3.26654647,2438.4,2437.0,80.8068]
[1751039577465,3.76e-06,2438.6,2438.5,0.81981]
[1751039577665,2.90607729,2439.6,2439.5,0.81947]
[1751039577867,2.90607729,2439.6,2439.5,25.429]
[1751039578068,1.3894,2439.7,2439.5,25.429]
[1751039578472,9.5972,2439.7,2439.2,40.8]
[1751039578659,3.2078,2439.4,2439.2,40.8]
[1751039578866,1.4557,2439.3,2439.2,41.61957]
[1751039579071,1.3894,2439.7,2439.6,0.81944]
[1751039579372,1.3894,2439.7,2439.6,26.36344]
[1751039579675,3.76837035,2440.1,2440.0,0.8193]
[1751039579869,1.4557,2440.2,2440.1,0.81927]
[1751039580070,1.4557,2440.2,2440.1,26.36327]
[1751039580466,1.4557,2440.2,2440.1,25.544]
[1751039580667,3.4457,2440.2,2440.1,26.36727]
[1751039580973,4.1626,2440.2,2440.1,26.36727]
[1751039581172,9.1626,2440.2,2439.9,0.81932]
[1751039581368,9.1626,2440.2,2440.0,25.543]
[1751039581369,7.22296151,2440.1,2440.0,25.543]
[1751039581674,8.67866151,2440.1,2440.0,25.543]
[1751039581875,10.66866151,2440.1,2440.0,25.543]
[1751039582072,15.66866151,2440.1,2440.0,25.543]
[1751039582270,7.22296151,2439.8,2439.4,3.2078]
[1751039582573,7.22296151,2439.5,2439.4,0.8195]
[1751039582972,8.67546151,2439.5,2439.4,0.8195]
[1751039583168,1.4525,2439.5,2439.4,0.8195]
[1751039583365,6.4525,2439.5,2439.2,40.8]
[1751039583561,3.2078,2439.3,2439.2,25.554]
[1751039583760,7.92326151,2439.4,2439.2,25.554]
[1751039583973,4.6603,2439.3,2439.2,25.554]
[1751039584175,4.6603,2439.3,2439.2,26.37357]
[1751039584374,9.6603,2439.3,2439.2,26.37357]
[1751039584574,9.6603,2439.3,2439.2,25.554]
[1751039585273,9.6603,2439.3,2439.0,26.37162]
[1751039585575,7.22296151,2438.8,2438.4,1.61186584]
[1751039585768,1.9845,2438.7,2438.3,3.2078]
[1751039585968,1.9845,2438.7,2438.6,0.81977]
[1751039586173,6.77,2439.3,2438.6,3.2078]
[1751039586469,1.319,2439.1,2438.6,0.81976]
[1751039586661,2.13861,2439.1,2438.6,0.81975]
[1751039586866,1.319,2439.1,2438.7,0.81973]
[1751039587665,0.0699,2438.9,2438.7,0.81973]
[1751039588070,1.3382,2438.8,2438.7,0.81973]
[1751039588479,0.0699,2438.9,2438.8,0.8197]
[1751039589377,4.546,2439.2,2439.0,0.81963]
[1751039589770,4.546,2439.2,2439.1,0.8196]
[1751039590565,6.536,2439.2,2439.1,0.8196]
[1751039590771,5.1978,2439.2,2439.1,0.8196]
[1751039591573,6.6486,2439.2,2439.1,0.8196]
[1751039591769,7.22296151,2439.1,2438.8,0.81969]
[1751039592077,1.4508,2439.0,2438.8,0.81969]
[1751039592265,1.4508,2439.0,2438.9,0.81967]
[1751039593072,7.22296151,2438.8,2438.3,3.2078]
[1751039593280,1.4508,2438.7,2438.4,0.81981]
[1751039593577,0.81978,2438.6,2438.3,4.02765]
[1751039593781,9.33766151,2438.5,2438.3,4.02765]
[1751039593972,9.33766151,2438.5,2438.4,0.81984]
[1751039594172,9.33766151,2438.5,2438.3,4.02766]
[1751039594469,9.33766151,2438.5,2438.4,0.81984]
[1751039594982,2.1147,2438.5,2438.4,0.81984]
[1751039595679,3.2078,2438.9,2438.3,3.2078]
[1751039595877,3.2078,2438.9,2438.7,0.81971]
[1751039596077,4.5698,2438.9,2438.3,5.25745]
[1751039596277,1.99,2438.8,2438.7,0.81972]
[1751039596479,3.352,2438.8,2438.6,0.81975]
[1751039596871,4.17171,2438.8,2438.5,0.81978]
[1751039597072,4.17171,2438.8,2438.3,3.2078]
[1751039597275,3.352,2438.8,2438.6,0.81976]
[1751039597474,4.17171,2438.8,2438.6,0.81976]
[1751039597682,3.352,2438.8,2438.7,0.81974]
[1751039598380,3.352,2438.8,2438.6,0.81975]
[1751039598582,3.352,2438.8,2438.7,0.81974]
[1751039599174,1.99,2438.8,2438.7,0.81974]
[1751039602884,1.99,2438.8,2438.7,2.23644]
[1751039604081,1.99,2438.8,2438.7,8.43606484]
[1751039604379,3.2078,2439.4,2438.7,1.61186584]
[1751039604681,0.6978,2439.3,2439.2,0.81957]
[1751039604886,2.1203,2439.3,2439.2,0.81957]
[1751039605383,0.6978,2439.3,2439.2,0.81957]
[1751039605584,1.4225,2439.7,2439.6,0.81944]
[1751039605889,0.7302,2439.7,2439.6,0.81944]
[1751039606183,3.9064,2439.8,2439.7,0.8194]
[1751039606690,0.6986,2439.8,2439.7,0.8194]
[1751039606881,4.02707,2440.1,2439.5,9.9778]
[1751039606882,3.2078,2440.1,2439.5,9.9778]
[1751039607083,4.5592,2440.1,2440.0,0.8193]
[1751039607291,3.2078,2440.1,2440.0,0.8193]
[1751039608087,4.5592,2440.1,2439.9,0.81931]
[1751039608385,5.37848,2440.1,2439.8,0.81934]
[1751039608585,5.37848,2440.1,2439.9,0.81934]
[1751039608776,4.5592,2440.1,2439.9,0.81934]
[1751039609381,8.04231151,2439.9,2439.5,4.40826841]
[1751039609585,7.22296151,2439.9,2439.6,7.58843]
[1751039609886,1.3762,2439.8,2439.6,41.61943]
[1751039610090,1.3762,2439.8,2439.7,0.8194]
[1751039610483,1.3762,2439.8,2439.6,0.81942]
[1751039610684,1.3762,2439.8,2439.7,0.8194]
[1751039611281,1.3762,2439.8,2439.5,11.17726841]
[1751039611588,1.3762,2439.8,2439.6,0.81942]
[1751039611589,2.19558,2439.8,2439.6,0.81942]
[1751039611786,1.3762,2439.8,2439.6,0.81943]
[1751039611985,1.99,2439.7,2439.6,0.81944]
[1751039612477,1.99,2439.7,2439.5,10.79625]
[1751039612684,1.99,2439.7,2439.5,9.9768]
[1751039612881,1.99,2439.7,2439.6,0.81944]
[1751039613088,0.81935,2439.9,2439.6,0.81944]
[1751039613589,1.4261,2440.0,2439.5,11.17960717]
[1751039613781,2.24547,2439.8,2439.6,0.81943]
[1751039614089,1.99,2439.8,2439.5,11.17960717]
[1751039614287,1.99,2439.8,2439.7,0.8194]
[1751039614587,3.2078,2440.1,2439.8,0.81935]
[1751039614782,1.99,2439.9,2439.8,0.81935]
[1751039614981,1.99,2439.9,2439.7,0.81938]
[1751039615188,1.99,2439.9,2439.8,0.81937]
[1751039615388,2.80934,2439.9,2439.7,0.81938]
[1751039615591,1.99,2439.9,2439.8,0.81937]
[1751039615789,1.99,2439.9,2439.8,4.02717]
[1751039615984,0.81922,2440.3,2440.0,0.8193]
[1751039616287,3.2078,2440.5,2440.0,7.58029]
[1751039616288,1.99,2440.1,2440.0,7.58029]
[1751039616690,2.80927,2440.1,2440.0,6.761]
[1751039616988,1.99,2440.1,2440.0,7.5803]
[1751039617188,1.99,2440.1,2440.0,8.9385]
[1751039618296,3.2078,2440.5,2440.2,0.81923]
[1751039618590,1.99,2440.3,2440.2,0.81923]
[1751039618891,1.99,2440.3,2440.0,8.1192]
[1751039619091,1.99,2440.3,2440.2,0.81924]
[1751039619987,3.2078,2440.5,2440.4,0.81917]
[1751039620183,3.2078,2440.5,2440.4,7.57917]
[1751039620386,3.2078,2440.5,2440.4,6.76]
[1751039620887,4.02694,2440.5,2440.4,6.76]
[1751039621488,1.99,2440.6,2440.5,0.81914]
[1751039622579,1.99,2440.6,2440.5,10.06790151]
[1751039622787,0.81888,2441.3,2441.2,0.8189]
[1751039622996,1.99,2441.1,2441.0,6.76]
[1751039623187,1.99,2441.1,2441.0,7.57897]
[1751039623394,3.2078,2442.4,2442.3,0.81853]
[1751039623583,3.2078,2442.4,2441.1,4.09463]
[1751039623584,3.2078,2442.5,2441.7,50.4178]
[1751039623784,3.2078,2442.2,2441.8,48.884]
[1751039624196,3.2078,2442.5,2441.9,7.22296151]
[1751039624492,0.81854,2442.3,2442.0,1.3249]
[1751039624687,3.2078,2442.5,2442.1,6.758]
[1751039624688,10.43076151,2442.5,2442.1,6.758]
[1751039624889,3.2078,2442.5,2442.1,6.758]
[1751039625087,4.02628,2442.5,2442.1,6.758]
[1751039625287,7.22296151,2444.0,2442.7,7.22296151]
[1751039625485,1.4451,2443.8,2443.3,3.2078]
[1751039625787,8.66806151,2443.8,2443.3,3.2078]
[1751039625990,0.81816,2443.4,2443.3,3.2078]
[1751039626185,0.81815,2443.5,2443.3,3.2078]
[1751039626391,0.81816,2443.4,2443.3,3.2078]
[1751039626788,1.4451,2443.5,2442.8,76.22025]
[1751039626789,0.81823,2443.2,2443.0,3.2078]
[1751039626991,7.22296151,2443.2,2442.9,6.758]
[1751039627291,3.2078,2443.3,2442.3,6.758]
[1751039627292,7.22296151,2442.7,2442.3,6.758]
[1751039627493,0.81843,2442.6,2442.5,3.2078]
[1751039627698,0.81843,2442.6,2442.5,41.35244911]
[1751039627895,0.81843,2442.6,2442.5,40.8]
[1751039628190,0.8185,2442.4,2442.3,6.758]
[1751039628388,7.22296151,2442.1,2441.9,6.756]
[1751039628593,8.04156151,2442.1,2442.0,0.55181155]
[1751039628792,0.8186,2442.1,2441.9,47.556]
[1751039628992,0.81863,2442.0,2441.9,6.756]
[1751039629592,0.81856,2442.2,2441.9,6.756]
[1751039629895,0.81858,2442.2,2442.0,6.756]
[1751039630087,0.8186,2442.1,2442.0,6.756]
[1751039630516,0.81866,2441.9,2441.8,3.2078]
[1751039630691,0.8188,2441.5,2441.4,9.9628]
[1751039630890,0.8189,2441.2,2441.1,4.6241]
[1751039631090,0.8189,2441.2,2441.1,51.32592548]
[1751039631396,0.8189,2441.2,2441.1,6.755]
[1751039631587,2.8094,2441.2,2441.1,6.755]
[1751039631987,1.9905,2441.2,2440.8,3.2078]
[1751039632189,8.04193151,2441.0,2440.9,0.56325592]
[1751039632383,0.81903,2440.8,2440.7,6.755]
[1751039632593,0.81903,2440.8,2440.7,9.9628]
[1751039633796,1.9905,2441.2,2440.7,14.9628]
[1751039633988,0.81896,2441.1,2440.8,1.4009]
[1751039634393,1.9905,2441.2,2440.7,9.9628]
[1751039634598,0.81902,2440.9,2440.7,9.9628]
[1751039634888,0.81903,2440.8,2440.7,9.9628]
[1751039635889,0.81903,2440.8,2440.7,3.2078]
[1751039636092,0.81903,2440.8,2440.7,40.8]
[1751039636901,0.81902,2440.9,2440.6,6.755]
[1751039637089,3.2078,2441.1,2440.6,11.4024]
[1751039637291,3.2078,2441.8,2441.2,7.22296151]
[1751039637492,4.02652,2441.8,2441.4,0.81883]
[1751039637692,4.02652,2441.8,2441.5,1.4396]
[1751039638092,3.2078,2441.8,2441.5,1.4396]
[1751039638293,4.02651,2441.8,2441.5,1.4396]